fUSD/lending_fUSD_20260405
["ID","MTS","AMOUNT","RATE_DAILY","PERIOD"]
[419818472,1775397053401,-1000.0,0.00014247,2]
[419818473,1775397053412,-1000.0,0.00014247,2]
[419818474,1775397053423,-1000.0,0.00014247,2]
[419818475,1775397053433,-743.80429884,0.00014247,2]
[419818476,1775397053442,-1000.0,0.00014247,2]
[419818477,1775397053452,-1000.0,0.00014247,2]
[419818478,1775397053462,-1000.0,0.00014247,2]
[419818479,1775397053471,-797.22,0.00014247,2]
[419818480,1775397053481,-881.74,0.00014247,2]
[419818481,1775397053491,-503.0,0.00014264,3]
[419818482,1775397053501,-1000.0,0.00014289,2]
[419818483,1775397053510,-500.0,0.00014291,2]
[419818484,1775397053521,-151.0,0.00014291,2]
[419818485,1775397053531,-16361.0,0.000143,2]
[419818486,1775397053541,-166.66,0.00014323,2]
[419818487,1775397053551,-1000.0,0.00014329,2]
[419818488,1775397053561,-1000.0,0.0001433,2]
[419818489,1775397053571,-1000.0,0.00014343,2]
[419818490,1775397053581,-500.0,0.00014346,2]
[419818491,1775397053591,-151.0,0.00014346,2]
[419818492,1775397053601,-861.43877969,0.00014359,2]
[419818493,1775397053611,-308.03873246,0.00014359,2]
[419818494,1775397053621,-1000.0,0.00014359,2]
[419818495,1775397053632,-627.70930647,0.00014359,2]
[419818496,1775397053643,-1000.0,0.00014359,2]
[419818497,1775397053653,-2512.47134075,0.0001436,2]
[419818498,1775397053663,-3500.0,0.0001436,2]
[419818499,1775397053673,-1000.0,0.00014381,2]
[419818500,1775397053684,-5957.33,0.00014384,2]
[419818501,1775397053694,-200.0,0.00014384,2]
[419818502,1775397053704,-765.22925782,0.00014384,2]
[419818503,1775397053715,-218.0418,0.000144,2]
[419818504,1775397053727,-150.0,0.000144,2]
[419818505,1775397053737,-150.0,0.000144,2]
[419818506,1775397053749,-150.0,0.000144,2]
[419818507,1775397053760,-150.0,0.000144,2]
[419818508,1775397053771,-150.0,0.000144,2]
[419818509,1775397053781,-150.0,0.000144,2]
[419818510,1775397053792,-150.0,0.000144,2]
[419818511,1775397053803,-150.0,0.000144,2]
[419818512,1775397053812,-150.0,0.000144,2]
[419818513,1775397053823,-150.0,0.000144,2]
[419818514,1775397053833,-150.0,0.000144,2]
[419818515,1775397053843,-150.0,0.000144,2]
[419818516,1775397053854,-150.05716299,0.000144,2]
[419818517,1775397053864,-150.0,0.000144,2]
[419818518,1775397053875,-150.0,0.000144,2]
[419818519,1775397053890,-500.0,0.00014401,2]
[419818520,1775397053901,-151.0,0.00014401,2]
[419818521,1775397053912,-150.0,0.00014417,2]
[419818522,1775397053923,-150.0,0.00014421,2]
[419818523,1775397053933,-150.0,0.00014423,2]
[419818524,1775397053945,-150.0,0.00014428,2]
[419818525,1775397053955,-150.0,0.00014428,2]
[419818526,1775397053965,-150.0,0.00014429,2]
[419818527,1775397053977,-150.0,0.00014435,2]
[419818528,1775397053987,-150.0,0.00014441,2]
[419818529,1775397053997,-150.0,0.00014445,2]
[419818530,1775397054009,-150.0,0.00014452,2]
[419818531,1775397054021,-150.0,0.00014452,2]
[419818532,1775397054031,-500.0,0.00014456,2]
[419818533,1775397054043,-151.0,0.00014456,2]
[419818534,1775397054055,-150.0,0.00014456,2]
[419818535,1775397054065,-150.0,0.00014456,2]
[419818536,1775397054076,-150.0,0.00014458,2]
[419818537,1775397054087,-150.0,0.00014462,2]
[419818538,1775397054099,-150.0,0.00014464,2]
[419818539,1775397054111,-150.0,0.00014468,2]
[419818540,1775397054121,-150.0,0.0001447,2]
[419818541,1775397054131,-150.0,0.00014482,2]
[419818542,1775397054141,-150.0,0.00014484,2]
[419818543,1775397054151,-150.0,0.00014484,2]
[419818544,1775397054162,-150.0,0.00014487,2]
[419818545,1775397054173,-150.0,0.00014487,2]
[419818546,1775397054184,-150.0,0.00014489,2]
[419818547,1775397054195,-150.0,0.0001449,2]
[419818548,1775397054205,-150.0,0.00014503,2]
[419818549,1775397054215,-150.0,0.00014503,2]
[419818550,1775397054226,-1619.684,0.00014504,2]
[419818551,1775397054238,-150.0,0.00014504,2]
[419818552,1775397054248,-500.0,0.00014511,2]
[419818553,1775397054258,-151.0,0.00014511,2]
[419818554,1775397054270,-150.0,0.00014512,2]
[419818555,1775397054280,-150.0,0.00014512,2]
[419818556,1775397054291,-150.0,0.00014513,2]
[419818557,1775397054301,-150.0,0.00014516,2]
[419818558,1775397054311,-881.74,0.00014521,2]
[419818559,1775397054321,-150.0,0.00014522,2]
[419818560,1775397054331,-150.0,0.00014523,2]
[419818561,1775397054341,-150.0,0.00014528,2]
[419818562,1775397054351,-150.0,0.00014535,2]
[419818563,1775397054362,-150.0,0.00014539,2]
[419818564,1775397054372,-150.0,0.0001454,2]
[419818565,1775397054383,-150.0,0.0001454,2]
[419818566,1775397054393,-150.0,0.00014544,2]
[419818567,1775397054403,-150.0,0.00014545,2]
[419818568,1775397054414,-150.0,0.00014555,2]
[419818569,1775397054424,-150.0,0.00014557,2]
[419818570,1775397054434,-150.0,0.00014558,2]
[419818571,1775397054444,-200.0,0.00014564,2]
[419818572,1775397054455,-217.15233878,0.00014564,2]
[419818573,1775397054466,-1481.23780761,0.00014564,2]
[419818574,1775397054475,-339.62894544,0.00014564,2]
[419818575,1775397054486,-771.01748645,0.00014564,2]
[419818576,1775397054496,-200.0,0.00014564,2]
[419818577,1775397054506,-181.08010149,0.00014564,2]
[419818578,1775397054516,-217.15233878,0.00014564,2]
[419818579,1775397054527,-719.04747942,0.00014564,2]
[419818580,1775397054537,-290.26104003,0.00014564,2]
[419818581,1775397054547,-150.0,0.00014564,2]
[419818582,1775397054557,-500.0,0.00014566,2]
[419818583,1775397054568,-151.0,0.00014566,2]
[419818584,1775397054578,-150.0,0.00014568,2]
[419818585,1775397054589,-150.0,0.00014568,2]
[419818586,1775397054599,-150.0,0.00014574,2]
[419818587,1775397054609,-150.0,0.00014575,2]
[419818588,1775397054620,-150.0,0.00014578,2]
[419818589,1775397054630,-150.0,0.0001458,2]
[419818590,1775397054641,-150.0,0.00014585,2]
[419818591,1775397054651,-150.0,0.00014591,2]
[419818592,1775397054662,-150.0,0.00014592,2]
[419818593,1775397054671,-150.0,0.00014596,2]
[419818594,1775397054681,-150.0,0.00014596,2]
[419818595,1775397054692,-5533.0,0.000146,3]
[419818596,1775397054702,-150.0,0.00014603,2]
[419818597,1775397054711,-150.0,0.00014604,2]
[419818598,1775397054722,-1000.0,0.00014604,2]
[419818599,1775397054732,-150.0,0.00014605,2]
[419818600,1775397054742,-150.0,0.00014606,2]
[419818601,1775397054752,-150.0,0.00014609,2]
[419818602,1775397054763,-166.66,0.00014619,2]
[419818603,1775397054773,-150.0,0.00014625,2]
[419818604,1775397054785,-150.0,0.00014625,2]
[419818605,1775397054796,-150.0,0.00014625,2]
[419818606,1775397054806,-150.0,0.00014625,2]
[419818607,1775397054817,-150.0,0.00014625,2]
[419818608,1775397054827,-232.00571695,0.00014625,2]
[419818609,1775397054840,-150.0,0.00014626,2]
[419818610,1775397054851,-150.0,0.00014626,2]
[419818611,1775397054861,-150.0,0.00014633,2]
[419818612,1775397054871,-150.0,0.00014643,2]
[419818613,1775397054881,-150.0,0.00014646,2]
[419818614,1775397054891,-150.0,0.00014648,2]
[419818615,1775397054902,-482.2,0.00014648,2]
[419818616,1775397054913,-150.0,0.00014653,2]
[419818617,1775397054924,-150.0,0.00014653,2]
[419818618,1775397054934,-150.0,0.00014656,2]
[419818619,1775397054946,-150.0,0.00014658,2]
[419818620,1775397054956,-1000.0,0.00014659,2]
[419818621,1775397054966,-150.0,0.00014661,2]
[419818622,1775397054977,-150.0,0.00014662,2]
[419818623,1775397054988,-150.0,0.00014667,2]
[419818624,1775397054999,-150.0,0.00014667,2]
[419818625,1775397055011,-150.0,0.00014667,2]
[419818626,1775397055021,-482.2,0.0001467,2]
[419818627,1775397055032,-150.0,0.0001467,2]
[419818628,1775397055042,-150.0,0.00014678,2]
[419818629,1775397055054,-150.0,0.00014681,2]
[419818630,1775397055065,-150.0,0.00014681,2]
[419818631,1775397055076,-150.0,0.00014687,2]
[419818632,1775397055088,-150.0,0.00014691,2]
[419818633,1775397055099,-150.0,0.00014693,2]
[419818634,1775397055109,-150.0,0.00014696,2]
[419818635,1775397055120,-150.0,0.00014708,2]
[419818636,1775397055131,-150.0,0.00014709,2]
[419818637,1775397055142,-150.0,0.00014709,2]
[419818638,1775397055153,-150.0,0.0001471,2]
[419818639,1775397055163,-481.62,0.00014713,2]
[419818640,1775397055173,-150.0,0.00014713,2]
[419818641,1775397055184,-150.0,0.00014715,2]
[419818642,1775397055195,-150.0,0.0001472,2]
[419818643,1775397055205,-150.0,0.0001472,2]
[419818644,1775397055215,-150.0,0.00014728,2]
[419818645,1775397055225,-150.0,0.0001473,2]
[419818646,1775397055236,-150.0,0.00014737,2]
[419818647,1775397055247,-150.0,0.00014737,2]
[419818648,1775397055257,-150.0,0.00014738,2]
[419818649,1775397055267,-1000.0,0.00014747,2]
[419818650,1775397055277,-150.0,0.00014748,2]
[419818651,1775397055287,-150.0,0.00014749,2]
[419818652,1775397055297,-150.0,0.00014749,2]
[419818653,1775397055307,-150.0,0.00014756,2]
[419818654,1775397055317,-150.0,0.00014761,2]
[419818655,1775397055328,-1000.0,0.00014761,2]
[419818656,1775397055339,-150.0,0.00014761,2]
[419818657,1775397055350,-150.0,0.00014765,2]
[419818658,1775397055362,-150.0,0.00014765,2]
[419818659,1775397055373,-150.0,0.00014765,2]
[419818660,1775397055384,-150.0,0.00014769,2]
[419818661,1775397055395,-150.0,0.00014778,2]
[419818662,1775397055405,-150.0,0.00014783,2]
[419818663,1775397055416,-150.0,0.00014783,2]
[419818664,1775397055427,-150.0,0.00014784,2]
[419818665,1775397055437,-150.0,0.0001479,2]
[419818666,1775397055447,-150.0,0.00014793,2]
[419818667,1775397055457,-150.0,0.00014793,2]
[419818668,1775397055467,-1318.06583411,0.00014795,2]
[419818669,1775397055477,-1500.0,0.00014795,2]
[419818670,1775397055487,-1500.0,0.00014795,2]
[419818671,1775397055497,-1503.24663382,0.00014795,2]
[419818672,1775397055507,-1500.0,0.00014795,2]
[419818673,1775397055516,-1500.0,0.00014795,2]
[419818674,1775397055527,-1500.0,0.00014795,2]
[419818675,1775397055537,-1500.0,0.00014795,2]
[419818676,1775397055547,-1500.0,0.00014795,2]
[419818677,1775397055557,-1500.0,0.00014795,2]
[419818678,1775397055567,-1500.0,0.00014795,2]
[419818679,1775397055576,-1500.0,0.00014795,2]
[419818680,1775397055586,-1500.0,0.00014795,2]
[419818681,1775397055597,-1500.0,0.00014795,2]
[419818682,1775397055607,-1500.0,0.00014795,2]
[419818683,1775397055617,-1500.0,0.00014795,2]
[419818684,1775397055627,-418.3764967,0.00014795,2]
[419818685,1775397055638,-1500.0,0.00014795,2]
[419818686,1775397055648,-1500.0,0.00014795,2]
[419818687,1775397055659,-1500.0,0.00014795,2]
[419818688,1775397055669,-1500.0,0.00014795,2]
[419818689,1775397055679,-1500.0,0.00014795,2]
[419818690,1775397055690,-1500.0,0.00014795,2]
[419818691,1775397055700,-1500.0,0.00014795,2]
[419818692,1775397055709,-1500.0,0.00014795,2]
[419818693,1775397055720,-1500.0,0.00014795,2]
[419818694,1775397055730,-1500.0,0.00014795,2]
[419818695,1775397055740,-1500.0,0.00014795,2]
[419818696,1775397055751,-186.27125357,0.00014795,2]
[419818697,1775397055762,-1500.0,0.00014795,2]
[419818698,1775397055772,-1500.0,0.00014795,2]
[419818699,1775397055782,-1500.0,0.00014795,2]
[419818700,1775397055792,-505.3,0.00014795,2]
[419818701,1775397055802,-553.41835149,0.00014795,2]
[419818702,1775397055812,-150.0,0.000148,2]
[419818703,1775397055822,-150.0,0.000148,2]
[419818704,1775397055833,-150.0,0.00014806,2]
[419818705,1775397055843,-150.0,0.00014807,2]
[419818706,1775397055853,-150.0,0.0001481,2]
[419818707,1775397055863,-150.0,0.00014813,2]
[419818708,1775397055875,-150.0,0.00014817,2]
[419818709,1775397056242,-150.0,0.00014821,2]
[419818710,1775397056252,-150.0,0.00014821,2]
[419818711,1775397056261,-150.0,0.00014828,2]
[419818712,1775397056271,-150.0,0.00014831,2]
[419818713,1775397056281,-150.0,0.00014835,2]
[419818714,1775397056291,-150.0,0.00014836,2]
[419818715,1775397056300,-1500.0,0.00014837,2]
[419818716,1775397056310,-150.0,0.00014844,2]
[419818717,1775397056319,-150.0,0.00014848,2]
[419818718,1775397056334,-150.0,0.00014849,2]
[419818719,1775397056344,-150.0,0.00014849,2]
[419818720,1775397056353,-150.0,0.00014851,2]
[419818721,1775397056362,-150.0,0.00014851,2]
[419818722,1775397056373,-150.0,0.00014852,2]
[419818723,1775397056383,-15609.82,0.00014853,2]
[419818724,1775397056393,-2460.01,0.00014853,2]
[419818725,1775397056404,-6742.52,0.00014853,2]
[419818726,1775397056414,-28985.77,0.00014853,2]
[419818727,1775397056425,-2396.23,0.00014853,2]
[419818728,1775397056436,-10286.0724003,0.00014863,2]
[419818729,1775397056446,-150.0,0.00014865,2]
[419818730,1775397056455,-150.0,0.00014865,2]
[419818731,1775397056465,-1000.0,0.00014869,2]
[419818732,1775397056474,-150.0,0.0001487,2]
[419818733,1775397056483,-150.0,0.00014872,2]
[419818734,1775397056493,-150.0,0.00014873,2]
[419818735,1775397056504,-1500.0,0.00014877,2]
[419818736,1775397056514,-150.0,0.00014877,2]
[419818737,1775397056524,-150.0,0.00014877,2]
[419818738,1775397056535,-150.0,0.00014887,2]
[419818739,1775397056545,-1227.692277,0.00014891,2]
[419818740,1775397056555,-150.0,0.00014892,2]
[419818741,1775397056564,-150.0,0.00014895,2]
[419818742,1775397056574,-150.0,0.00014896,2]
[419818743,1775397056583,-687.92204042,0.000149,2]
[419818744,1775397056593,-300.0,0.000149,5]
[419818745,1775397056603,-5533.0,0.000149,5]
[419818746,1775397056614,-150.0,0.00014904,2]
[419818747,1775397056625,-150.0,0.00014905,2]
[419818748,1775397056635,-150.0,0.00014905,2]
[419818749,1775397056644,-953.31303788,0.00014907,2]
[419818750,1775397056655,-1500.0,0.00014907,2]
[419818751,1775397056665,-72822.49080257,0.00014908,2]
[419818752,1775397056679,-3971.62275228,0.00014908,2]
[419818753,1775397056690,-1466.85092411,0.00014909,2]
[419818754,1775397056700,-150.0,0.00014912,2]
[419818755,1775397056710,-150.0,0.00014913,2]
[419818756,1775397056719,-166.66,0.00014914,2]
[419818757,1775397056729,-150.0,0.00014916,2]
[419818758,1775397056740,-150.0,0.00014918,2]
[419818759,1775397056749,-150.0,0.00014922,2]
[419818760,1775397056759,-150.0,0.00014924,2]
[419818761,1775397056769,-200.0,0.00014932,2]
[419818762,1775397056778,-150.0,0.00014933,2]
[419818763,1775397056787,-150.0,0.00014933,2]
[419818764,1775397056797,-150.0,0.00014933,2]
[419818765,1775397056808,-150.0,0.00014933,2]
[419818766,1775397056818,-150.0,0.00014933,2]
[419818767,1775397056828,-150.0,0.00014933,2]
[419818768,1775397056837,-150.0,0.00014939,2]
[419818769,1775397056847,-150.0,0.00014941,2]
[419818770,1775397056858,-588.99,0.00014949,2]
[419818771,1775397056868,-969.24,0.00014949,2]
[419818772,1775397056878,-1000.0,0.0001495,2]
[419818773,1775397056888,-150.0,0.00014953,2]
[419818774,1775397056898,-150.0,0.00014954,2]
[419818775,1775397056908,-1233.74,0.00014955,2]
[419818776,1775397056917,-150.0,0.00014957,2]
[419818777,1775397056926,-150.0,0.00014961,2]
[419818778,1775397056936,-150.0,0.00014961,2]
[419818779,1775397056946,-150.0,0.00014963,2]
[419818780,1775397056957,-150.0,0.00014968,2]
[419818781,1775397056967,-1000.0,0.00014968,2]
[419818782,1775397056976,-150.0,0.00014974,2]
[419818783,1775397056988,-150.0,0.00014974,2]
[419818784,1775397056999,-150.0,0.00014976,2]
[419818785,1775397057009,-1000.0,0.00014978,2]
[419818786,1775397057020,-150.0,0.00014982,2]
[419818787,1775397057030,-150.0,0.00014986,2]
[419818788,1775397057039,-150.0,0.00014989,2]
[419818789,1775397057049,-150.0,0.00014989,2]
[419818790,1775397057059,-1918.65220609,0.00014991,2]
[419818791,1775397057068,-150.0,0.00014991,2]
[419818792,1775397057078,-150.0,0.00014995,2]
[419818793,1775397057088,-300.0,0.00015,2]
[419818794,1775397057098,-588.99,0.00015,2]
[419818795,1775397057108,-588.99,0.00015,2]
[419818796,1775397057120,-588.99,0.00015,2]
[419818797,1775397057129,-588.99,0.00015,2]
[419818798,1775397057139,-588.99,0.00015,2]
[419818799,1775397057149,-588.99,0.00015,2]
[419818800,1775397057158,-588.99,0.00015,2]
[419818801,1775397057168,-969.24,0.00015,2]
[419818802,1775397057177,-969.24,0.00015,2]
[419818803,1775397057187,-969.24,0.00015,2]
[419818804,1775397057196,-969.24,0.00015,2]
[419818805,1775397057205,-969.24,0.00015,2]
[419818806,1775397057215,-969.24,0.00015,2]
[419818807,1775397057224,-969.27278756,0.00015,2]
[419818808,1775397057234,-1233.74,0.00015,2]
[419818809,1775397057244,-1233.74,0.00015,2]
[419818810,1775397057253,-1233.74,0.00015,2]
[419818811,1775397057262,-1233.74,0.00015,2]
[419818812,1775397057272,-1233.82978926,0.00015,2]
[419818813,1775397057282,-1500000.0,0.00015001,2]
[419818814,1775397057292,-150.0,0.00015008,2]
[419818815,1775397057302,-150.0,0.00015009,2]
[419818816,1775397057312,-150.0,0.00015011,2]
[419818817,1775397057323,-150.0,0.00015015,2]
[419818818,1775397057332,-2000.0,0.00015015,2]
[419818819,1775397057343,-500.0,0.00015015,2]
[419818820,1775397057353,-150.0,0.00015018,2]
[419818821,1775397057363,-150.0,0.00015018,2]
[419818822,1775397057374,-150.0,0.00015019,2]
[419818823,1775397057383,-150.0,0.00015022,2]
[419818824,1775397057393,-150.0,0.00015026,2]
[419818825,1775397057403,-150.0,0.00015031,2]
[419818826,1775397057413,-150.0,0.00015036,2]
[419818827,1775397057423,-150.0,0.0001504,2]
[419818828,1775397057434,-150.0,0.0001504,2]
[419818829,1775397057443,-150.0,0.00015043,2]
[419818830,1775397057453,-150.0,0.00015046,2]
[419818831,1775397057463,-150.0,0.00015046,2]
[419818832,1775397057473,-150.0,0.00015054,2]
[419818833,1775397057483,-150.0,0.00015056,2]
[419818834,1775397057493,-150.0,0.00015061,2]
[419818835,1775397057503,-5957.33,0.00015068,2]
[419818836,1775397057514,-900.0,0.00015068,2]
[419818837,1775397057523,-800.0,0.00015068,2]
[419818838,1775397057533,-150.0,0.00015069,2]
[419818839,1775397057543,-150.0,0.00015071,2]
[419818840,1775397057552,-150.0,0.00015074,2]
[419818841,1775397057562,-150.0,0.00015074,2]
[419818842,1775397057572,-150.0,0.00015076,2]
[419818843,1775397057581,-150.0,0.00015077,2]
[419818844,1775397057591,-150.0,0.00015078,2]
[419818845,1775397057602,-150.0,0.00015096,2]
[419818846,1775397057611,-150.0,0.00015097,2]
[419818847,1775397057621,-150.0,0.00015098,2]
[419818848,1775397057631,-150.0,0.00015099,2]
[419818849,1775397057641,-150.0,0.00015102,2]
[419818850,1775397057650,-150.0,0.00015102,2]
[419818851,1775397057660,-12668.6273741,0.00015102,2]
[419818852,1775397057669,-428814.045739,0.00015102,2]
[419818853,1775397057678,-150.0,0.00015104,2]
[419818854,1775397057687,-150.0,0.00015111,2]
[419818855,1775397057696,-200.0,0.00015112,2]
[419818856,1775397057706,-225.18697532,0.00015112,2]
[419818857,1775397057716,-1536.04360649,0.00015112,2]
[419818858,1775397057726,-799.54513345,0.00015112,2]
[419818859,1775397057737,-200.0,0.00015112,2]
[419818860,1775397057746,-187.78006525,0.00015112,2]
[419818861,1775397057755,-225.18697532,0.00015112,2]
[419818862,1775397057765,-745.65223616,0.00015112,2]
[419818863,1775397057774,-301.00069851,0.00015112,2]
[419818864,1775397057785,-150.0,0.00015113,2]
[419818865,1775397057795,-150.0,0.00015118,2]
[419818866,1775397057804,-150.0,0.00015121,2]
[419818867,1775397057816,-150.0,0.00015123,2]
[419818868,1775397057827,-150.0,0.00015127,2]
[419818869,1775397057838,-150.0,0.0001513,2]
[419818870,1775397057847,-150.0,0.0001513,2]
[419818871,1775397057857,-150.0,0.0001513,2]
[419818872,1775397057867,-150.0,0.00015138,2]
[419818873,1775397057876,-150.0,0.00015144,2]
[419818874,1775397057886,-150.0,0.00015148,2]
[419818875,1775397057897,-150.0,0.00015156,2]
[419818876,1775397057907,-150.0,0.00015158,2]
[419818877,1775397057918,-150.0,0.00015158,2]
[419818878,1775397057927,-150.0,0.00015159,2]
[419818879,1775397057936,-150.0,0.00015165,2]
[419818880,1775397057946,-150.0,0.00015166,2]
[419818881,1775397057956,-150.0,0.00015168,2]
[419818882,1775397057966,-150.0,0.00015174,2]
[419818883,1775397057975,-1000.0,0.00015179,2]
[419818884,1775397057984,-150.0,0.00015179,2]
[419818885,1775397057994,-150.0,0.00015183,2]
[419818886,1775397058004,-129404.982173,0.00015183,2]
[419818887,1775397058013,-150.0,0.00015185,2]
[419818888,1775397058022,-150.0,0.00015186,2]
[419818889,1775397058032,-150.0,0.00015186,2]
[419818890,1775397058041,-150.0,0.00015189,2]
[419818891,1775397058051,-150.0,0.000152,2]
[419818892,1775397058061,-150.0,0.000152,2]
[419818893,1775397058071,-150.0,0.000152,2]
[419818894,1775397058080,-150.0,0.000152,2]
[419818895,1775397058090,-150.0,0.000152,2]
[419818896,1775397058100,-150.0,0.000152,2]
[419818897,1775397058110,-150.0,0.000152,2]
[419818898,1775397058119,-1000.46413845,0.00015201,2]
[419818899,1775397058129,-166.66,0.00015209,2]
[419818900,1775397058139,-150.0,0.00015211,2]
[419818901,1775397058149,-150.0,0.00015214,2]
[419818902,1775397058159,-150.0,0.00015214,2]
[419818903,1775397058168,-150.0,0.00015215,2]
[419818904,1775397058178,-150.0,0.00015217,2]
[419818905,1775397058187,-150.0,0.00015221,2]
[419818906,1775397058197,-150.0,0.00015226,2]
[419818907,1775397058207,-155.80569417,0.00015231,2]
[419818908,1775397058216,-150.0,0.00015232,2]
[419818909,1775397058225,-150.0,0.00015234,2]
[419818910,1775397058235,-150.0,0.00015235,2]
[419818911,1775397058245,-426.16759086,0.00015237,2]
[419818912,1775397058259,-150.0,0.00015241,2]
[419818913,1775397058269,-150.0,0.00015242,2]
[419818914,1775397058279,-150.0,0.00015242,2]
[419818915,1775397058288,-150.0,0.00015244,2]
[419818916,1775397058297,-150.0,0.00015252,2]
[419818917,1775397058307,-150.0,0.00015256,2]
[419818918,1775397058316,-150.0,0.00015262,2]
[419818919,1775397058326,-150.0,0.0001527,2]
[419818920,1775397058337,-150.0,0.0001527,2]
[419818921,1775397058347,-150.0,0.0001527,2]
[419818922,1775397058356,-150.0,0.00015273,2]
[419818923,1775397058366,-150.0,0.00015277,2]
[419818924,1775397058376,-150.0,0.00015279,2]
[419818925,1775397058385,-150.0,0.00015282,2]
[419818926,1775397058395,-150.0,0.00015287,2]
[419818927,1775397058404,-150.0,0.00015289,2]
[419818928,1775397058414,-150.0,0.00015296,2]
[419818929,1775397058424,-150.0,0.00015298,2]
[419818930,1775397058434,-150.0,0.00015298,2]
[419818931,1775397058443,-1000.0,0.00015301,2]
[419818932,1775397058453,-2000.0,0.00015301,2]
[419818933,1775397058463,-150.0,0.00015301,2]
[419818934,1775397058472,-150.0,0.00015302,2]
[419818935,1775397058482,-150.0,0.00015303,2]
[419818936,1775397058492,-150.0,0.00015304,2]
[419818937,1775397058501,-150.0,0.00015322,2]
[419818938,1775397058511,-150.0,0.00015323,2]
[419818939,1775397058520,-150.0,0.00015324,2]
[419818940,1775397058530,-879.65842586,0.00015325,2]
[419818941,1775397058540,-150.0,0.00015326,2]
[419818942,1775397058656,-150.0,0.00015326,2]
[419818943,1775397058668,-150.0,0.00015329,2]
[419818944,1775397058677,-150.0,0.00015331,2]
[419818945,1775397058687,-150.0,0.00015339,2]
[419818946,1775397058696,-2000.0,0.00015342,2]
[419818947,1775397058706,-500.0,0.00015342,2]
[419818948,1775397058716,-2000.0,0.00015342,2]
[419818949,1775397058726,-1762.51968471,0.00015342,2]
[419818950,1775397058736,-1171.96403511,0.00015342,2]
[419818951,1775397058746,-2000.0,0.00015342,2]
[419818952,1775397058755,-1381.20749087,0.00015342,2]
[419818953,1775397058765,-2000.0,0.00015342,2]
[419818954,1775397058775,-2000.0,0.00015342,2]
[419818955,1775397058784,-2000.0,0.00015342,2]
[419818956,1775397058794,-1143.48326881,0.00015342,2]
[419818957,1775397058803,-1558.37452133,0.00015342,2]
[419818958,1775397058813,-2000.0,0.00015342,2]
[419818959,1775397058823,-2000.0,0.00015342,2]
[419818960,1775397058833,-1432.23819105,0.00015342,2]
[419818961,1775397058843,-2000.0,0.00015342,2]
[419818962,1775397058852,-740.76074935,0.00015342,2]
[419818963,1775397058862,-1189.37318328,0.00015342,2]
[419818964,1775397058872,-1000.0,0.00015342,2]
[419818965,1775397058881,-2000.0,0.00015342,2]
[419818966,1775397058891,-1193.24301277,0.00015342,2]
[419818967,1775397058900,-2000.0,0.00015342,2]
[419818968,1775397058909,-347.07116371,0.00015342,2]
[419818969,1775397058919,-2000.0,0.00015342,2]
[419818970,1775397058929,-2000.0,0.00015342,2]
[419818971,1775397058939,-1000.0,0.00015342,2]